{"text_format":"1","workbook":"xlsx","n_sheets":1,"sheets":["ЖЭС-2"],"not_rendered":{"charts":0,"images":0,"macros":1,"external_links":0,"defined_names":6,"comments":0,"pivot_tables":0},"unopened":[],"bounds":{"document_bytes":16777216,"sheet_cells":100000,"rows_first":2000,"rows_last":500,"rows_between":2000,"halvings":0,"cell_chars":16384,"cell_head_chars":4096},"cells_cut":0,"cells_raw":0,"read":"whole","date_system":"1900"}

{"sheet":"ЖЭС-2","index":0,"n_rows":19,"n_cols":27,"rows_kept":19,"cut":false,"hidden":false,"merged":[[7,7,7,8],[7,10,7,11],[7,14,7,20],[7,21,7,23],[7,24,7,25]]}
[]
[]
[]
[]
[]
[]
[null,null,null,null,null,null,null,"     66.1",null,null,null,null,null,null,"63.5","63.4","63.2",null,"65.1","62.1",null,null,"62.2"]
[null,"3.2.",null,null,null,"64.1",null,"Количество ВУ. ВРУ",null,"66.3","ВУ, ВРУ в Э.Щ.",null,"66.1","66.2","ПОДЪЕЗДЫ",null,null,null,null,null,null,"Вх. группа подъезда",null,null,"ПОДВАЛ"]
["№ п.п","Адрес","кол-во квартир","Этажей","Подъездов","Эл. пров в подв. 10 м\\п","Место установки ВРУ, Э.Щ.","Количество ВУ, РУ","ВРУ (вводно распр. устр.)","Количество Э.Щ.","ВУ, ВРУ в Э.Щ.","ВРУ (вводно распр. устр.)2","Вводное устройство (рубильник)","Щитки этажные","Люминисцент.","КЛ","ЛН","светодиодный светильник","выключателей","светильников между этажами","датчиков","светодиодный светильник2","светодиодные лампы","КЛ2","Кол - во выключателей ","Кол - во светильников ","Фотореле"]
[{"$f":"_xlfn.AGGREGATE(3,3,$B$10:B10)","v":1},"ул. 8 МАРТА д.3",{"$f":"SUM(C11:C14)","v":80},{"$f":"SUM(D11:D14)/ЖЭС_2_данные[[#This Row],[Подъездов]]","v":5},4,{"$f":"SUM(F11:F14)","v":8.1},"2 п",null,null,{"$f":"SUM(J11:J14)","v":1},null,{"$f":"SUM(L11:L14)","v":1},null,null,20,null,null,null,8,null,null,null,1,1,12,32]
[{"$f":"IFERROR(IF(SUBTOTAL(3,B11),A10+1,A10),1)","v":2},"подъезд.1",20,5,null,2.1,null,null,null,null,null,null,null,null,5,null,null,null,2,null,null,null,null,null,3,8]
[{"$f":"IFERROR(IF(SUBTOTAL(3,B12),A11+1,A11),1)","v":3},"подъезд.2",20,5,null,2,"под.",null,null,1,null,1,null,null,5,null,null,null,2,null,null,null,1,null,3,8]
[{"$f":"IFERROR(IF(SUBTOTAL(3,B13),A12+1,A12),1)","v":4},"подъезд.3",20,5,null,2,null,null,null,null,null,null,null,null,5,null,null,null,2,null,null,null,null,1,3,8]
[{"$f":"IFERROR(IF(SUBTOTAL(3,B14),A13+1,A13),1)","v":5},"подъезд.4",20,5,null,2,null,null,null,null,null,null,null,null,5,null,null,null,2,null,null,null,null,null,3,8]
[{"$f":"IFERROR(IF(SUBTOTAL(3,B15),A10+1,A10),1)","v":2},"ул. 8 МАРТА д.5",{"$f":"SUM(C16:C19)","v":80},{"$f":"SUM(D16:D19)/ЖЭС_2_данные[[#This Row],[Подъездов]]","v":5},4,{"$f":"SUM(F16:F19)","v":8.3000000000000007},"1 подв.",null,null,{"$f":"SUM(J16:J19)","v":1},null,{"$f":"SUM(L16:L19)","v":1},null,null,{"$f":"SUM(O16:O19)","v":20},null,null,null,{"$f":"SUM(S16:S19)","v":8},null,null,null,{"$f":"SUM(W16:W19)","v":3},{"$f":"SUM(X16:X19)","v":1},{"$f":"SUM(Y16:Y19)","v":12},{"$f":"SUM(Z16:Z19)","v":32}]
[{"$f":"IFERROR(IF(SUBTOTAL(3,B16),A15+1,A15),1)","v":3},"подъезд.1",20,5,null,2.1,"подв.",null,null,1,null,1,null,null,5,null,null,null,2,null,null,null,null,1,3,9]
[{"$f":"IFERROR(IF(SUBTOTAL(3,B17),A16+1,A16),1)","v":4},"подъезд.2",20,5,null,2.2000000000000002,null,null,null,null,null,null,null,null,5,null,null,null,2,null,null,null,1,null,3,7]
[{"$f":"IFERROR(IF(SUBTOTAL(3,B18),A17+1,A17),1)","v":5},"подъезд.3",20,5,null,2,null,null,null,null,null,null,null,null,5,null,null,null,2,null,null,null,1,null,3,8]
[{"$f":"IFERROR(IF(SUBTOTAL(3,B19),A18+1,A18),1)","v":6},"подъезд.4",20,5,null,2,null,null,null,null,null,null,null,null,5,null,null,null,2,null,null,null,1,null,3,8]